[Event "Live Chess"]
[Site "Chess.com"]
[Date "2021.02.06"]
[Round "-"]
[White "agarwal4553"]
[Black "siverlem"]
[Result "1-0"]
[CurrentPosition "8/8/8/8/8/4K3/8/4k2Q b - -"]
[Timezone "UTC"]
[ECO "C50"]
[ECOUrl "https://www.chess.com/openings/Giuoco-Piano-Game-Giuoco-Pianissimo-Variation-4...Nf6"]
[UTCDate "2021.02.06"]
[UTCTime "20:31:51"]
[WhiteElo "913"]
[BlackElo "828"]
[TimeControl "1200+10"]
[Termination "agarwal4553 won by checkmate"]
[StartTime "20:31:51"]
[EndDate "2021.02.06"]
[EndTime "20:47:03"]
[Link "https://www.chess.com/live/game/6472996092"]

1. e4 {[%clk 0:20:10]} 1... e5 {[%clk 0:20:07.4]} 2. Nf3 {[%clk 0:20:18.3]} 2... Nc6 {[%clk 0:20:15.5]} 3. Bc4 {[%clk 0:20:26.5]} 3... Nf6 {[%clk 0:20:18.5]} 4. d3 {[%clk 0:20:33.5]} 4... Bc5 {[%clk 0:20:21.4]} 5. Bg5 {[%clk 0:20:39.8]} 5... h6 {[%clk 0:20:27.8]} 6. Bxf6 {[%clk 0:20:48.3]} 6... Qxf6 {[%clk 0:20:37.3]} 7. Nc3 {[%clk 0:20:55]} 7... d6 {[%clk 0:20:41.5]} 8. Nd5 {[%clk 0:21:02.3]} 8... Qd8 {[%clk 0:20:41.9]} 9. h3 {[%clk 0:21:09]} 9... Be6 {[%clk 0:20:40]} 10. a3 {[%clk 0:21:03.8]} 10... Nd4 {[%clk 0:20:34.1]} 11. Nxd4 {[%clk 0:21:08.2]} 11... Bxd4 {[%clk 0:20:42.2]} 12. c3 {[%clk 0:21:16.3]} 12... Bb6 {[%clk 0:20:47.2]} 13. f3 {[%clk 0:21:20.3]} 13... Qh4+ {[%clk 0:20:47.1]} 14. Kd2 {[%clk 0:21:24.1]} 14... Qd8 {[%clk 0:20:49]} 15. Kc1 {[%clk 0:21:31.7]} 15... Qg5+ {[%clk 0:20:52.4]} 16. Kb1 {[%clk 0:21:38.8]} 16... Qxg2 {[%clk 0:20:57.2]} 17. Nxb6 {[%clk 0:21:43]} 17... axb6 {[%clk 0:21:02.8]} 18. Bxe6 {[%clk 0:21:50.9]} 18... fxe6 {[%clk 0:21:10]} 19. h4 {[%clk 0:21:56.6]} 19... d5 {[%clk 0:21:12.1]} 20. Ka2 {[%clk 0:21:52.6]} 20... dxe4 {[%clk 0:21:06.1]} 21. fxe4 {[%clk 0:21:57.6]} 21... O-O-O {[%clk 0:21:04.3]} 22. Qh5 {[%clk 0:21:55.7]} 22... Rhf8 {[%clk 0:20:44.4]} 23. Qxe5 {[%clk 0:22:00.9]} 23... Rde8 {[%clk 0:20:45.9]} 24. Rag1 {[%clk 0:21:46.5]} 24... Qc2 {[%clk 0:20:43.7]} 25. Rh2 {[%clk 0:21:46.8]} 25... Qxd3 {[%clk 0:20:45.3]} 26. Rb1 {[%clk 0:21:45]} 26... Rf1 {[%clk 0:20:39.8]} 27. Rxf1 {[%clk 0:21:44.9]} 27... Qxf1 {[%clk 0:20:49.7]} 28. Rd2 {[%clk 0:21:47.6]} 28... Rd8 {[%clk 0:20:46.4]} 29. Rxd8+ {[%clk 0:21:48.8]} 29... Kxd8 {[%clk 0:20:56.3]} 30. Qxg7 {[%clk 0:21:55.4]} 30... Qh1 {[%clk 0:20:42.5]} 31. Qf6+ {[%clk 0:22:03.2]} 31... Ke8 {[%clk 0:20:47.9]} 32. Qxe6+ {[%clk 0:22:11.9]} 32... Kd8 {[%clk 0:20:55.3]} 33. Qxh6 {[%clk 0:22:12.7]} 33... Qxe4 {[%clk 0:21:02.4]} 34. Qg7 {[%clk 0:22:13.8]} 34... Qxh4 {[%clk 0:21:01]} 35. Kb3 {[%clk 0:22:16.3]} 35... c5 {[%clk 0:20:54]} 36. Qxb7 {[%clk 0:22:22.6]} 36... Qh6 {[%clk 0:20:52]} 37. Qa8+ {[%clk 0:22:21.2]} 37... Ke7 {[%clk 0:20:59.3]} 38. Qa7+ {[%clk 0:22:27.1]} 38... Kf8 {[%clk 0:21:01.5]} 39. a4 {[%clk 0:22:32]} 39... Qe6+ {[%clk 0:21:04.8]} 40. c4 {[%clk 0:22:37.8]} 40... Qe3+ {[%clk 0:21:10.5]} 41. Ka2 {[%clk 0:22:44.3]} 41... Qe2 {[%clk 0:20:43.6]} 42. Qxb6 {[%clk 0:22:51.8]} 42... Qxc4+ {[%clk 0:20:51.5]} 43. b3 {[%clk 0:23:00.2]} 43... Qc2+ {[%clk 0:20:58.8]} 44. Ka3 {[%clk 0:23:08.8]} 44... Ke7 {[%clk 0:20:56.9]} 45. a5 {[%clk 0:23:14.5]} 45... c4 {[%clk 0:20:56.6]} 46. Qc5+ {[%clk 0:23:19.3]} 46... Ke6 {[%clk 0:20:56.4]} 47. bxc4 {[%clk 0:23:25.7]} 47... Qc3+ {[%clk 0:21:00.1]} 48. Ka4 {[%clk 0:23:30.6]} 48... Qc2+ {[%clk 0:21:02]} 49. Kb5 {[%clk 0:23:38.9]} 49... Qd3 {[%clk 0:21:03.4]} 50. Kc6 {[%clk 0:23:46.2]} 50... Qd2 {[%clk 0:21:06.7]} 51. a6 {[%clk 0:23:54.3]} 51... Qa2 {[%clk 0:21:07.4]} 52. a7 {[%clk 0:24:02.9]} 52... Kf7 {[%clk 0:21:06.1]} 53. Qf5+ {[%clk 0:24:04.3]} 53... Ke7 {[%clk 0:21:13]} 54. Qd7+ {[%clk 0:24:11.7]} 54... Kf6 {[%clk 0:21:21.2]} 55. Qd8+ {[%clk 0:24:18.9]} 55... Ke5 {[%clk 0:21:28.4]} 56. a8=Q {[%clk 0:24:27.6]} 56... Qxc4+ {[%clk 0:21:34.4]} 57. Kb7 {[%clk 0:24:33.8]} 57... Qb5+ {[%clk 0:21:38.7]} 58. Ka7 {[%clk 0:24:30.1]} 58... Qc5+ {[%clk 0:21:43.7]} 59. Qb6 {[%clk 0:24:38.4]} 59... Qa3+ {[%clk 0:21:48.4]} 60. Kb8 {[%clk 0:24:45.5]} 60... Qd6+ {[%clk 0:21:50.7]} 61. Qc7 {[%clk 0:24:52.2]} 61... Ke6 {[%clk 0:21:36.6]} 62. Qxd6+ {[%clk 0:24:57.9]} 62... Kxd6 {[%clk 0:21:44.9]} 63. Qb7 {[%clk 0:25:06.7]} 63... Kc5 {[%clk 0:21:52.5]} 64. Kc8 {[%clk 0:25:14.9]} 64... Kc4 {[%clk 0:22:01.5]} 65. Kd7 {[%clk 0:25:24]} 65... Kc3 {[%clk 0:22:10.2]} 66. Kd6 {[%clk 0:25:33.3]} 66... Kd3 {[%clk 0:22:19.5]} 67. Kd5 {[%clk 0:25:42.1]} 67... Ke3 {[%clk 0:22:28.9]} 68. Qb4 {[%clk 0:25:49.3]} 68... Kf3 {[%clk 0:22:36.8]} 69. Ke5 {[%clk 0:25:58.2]} 69... Ke2 {[%clk 0:22:45.8]} 70. Kf4 {[%clk 0:26:06.5]} 70... Kf1 {[%clk 0:22:54.7]} 71. Ke3 {[%clk 0:26:14.2]} 71... Kg2 {[%clk 0:23:03.6]} 72. Qg4+ {[%clk 0:26:21.6]} 72... Kf1 {[%clk 0:23:11.2]} 73. Qh3+ {[%clk 0:26:27.8]} 73... Ke1 {[%clk 0:23:19.6]} 74. Qh1# {[%clk 0:26:36.1]} 1-0

[Event "Live Chess"]
[Site "Chess.com"]
[Date "2021.02.06"]
[Round "-"]
[White "SelfishClothes"]
[Black "Samurai-Sammy"]
[Result "1-0"]
[CurrentPosition "3Q4/5prk/8/p6Q/P1P3P1/8/5P2/6K1 b - -"]
[Timezone "UTC"]
[ECO "C50"]
[ECOUrl "https://www.chess.com/openings/Giuoco-Piano-Game-Four-Knights-Game"]
[UTCDate "2021.02.06"]
[UTCTime "20:32:06"]
[WhiteElo "1135"]
[BlackElo "579"]
[TimeControl "1200+10"]
[Termination "SelfishClothes won by checkmate"]
[StartTime "20:32:06"]
[EndDate "2021.02.06"]
[EndTime "20:43:00"]
[Link "https://www.chess.com/live/game/6472996394"]

1. e4 {[%clk 0:20:08]} 1... e5 {[%clk 0:20:03.8]} 2. Nf3 {[%clk 0:20:14.9]} 2... Nc6 {[%clk 0:20:10.6]} 3. Nc3 {[%clk 0:20:22]} 3... Nf6 {[%clk 0:20:14.3]} 4. Bc4 {[%clk 0:20:25.3]} 4... Bc5 {[%clk 0:20:22.3]} 5. O-O {[%clk 0:20:32.5]} 5... O-O {[%clk 0:20:28.2]} 6. d3 {[%clk 0:20:40]} 6... d6 {[%clk 0:20:35.4]} 7. Bg5 {[%clk 0:20:43.6]} 7... h6 {[%clk 0:20:42.1]} 8. Bxf6 {[%clk 0:20:47.3]} 8... Qxf6 {[%clk 0:20:44.1]} 9. Bb5 {[%clk 0:20:53]} 9... Nb4 {[%clk 0:20:46.2]} 10. a3 {[%clk 0:20:53.9]} 10... Nc6 {[%clk 0:20:50.8]} 11. Bxc6 {[%clk 0:21:00.4]} 11... bxc6 {[%clk 0:20:58.2]} 12. b4 {[%clk 0:21:08.6]} 12... Bb6 {[%clk 0:21:03.3]} 13. h3 {[%clk 0:21:12.1]} 13... Rb8 {[%clk 0:20:48.5]} 14. a4 {[%clk 0:21:15.7]} 14... a5 {[%clk 0:20:52.1]} 15. b5 {[%clk 0:21:22.3]} 15... Bb7 {[%clk 0:20:55.7]} 16. bxc6 {[%clk 0:21:25.5]} 16... Bxc6 {[%clk 0:21:02.3]} 17. Nd5 {[%clk 0:21:24.8]} 17... Bxd5 {[%clk 0:21:05.1]} 18. exd5 {[%clk 0:21:31.8]} 18... Ba7 {[%clk 0:21:04.3]} 19. c3 {[%clk 0:21:27.3]} 19... g6 {[%clk 0:20:59.8]} 20. Re1 {[%clk 0:21:21]} 20... Rbe8 {[%clk 0:20:49]} 21. Rb1 {[%clk 0:21:15.1]} 21... g5 {[%clk 0:20:35.3]} 22. Rb7 {[%clk 0:21:19.5]} 22... Bc5 {[%clk 0:20:39.7]} 23. Rxc7 {[%clk 0:21:23.2]} 23... h5 {[%clk 0:20:39.8]} 24. d4 {[%clk 0:21:23.5]} 24... Bb6 {[%clk 0:20:37.7]} 25. Rc6 {[%clk 0:21:21.9]} 25... Bd8 {[%clk 0:20:44.6]} 26. dxe5 {[%clk 0:21:26.2]} 26... dxe5 {[%clk 0:20:49.7]} 27. Rxf6 {[%clk 0:21:33.8]} 27... Bxf6 {[%clk 0:20:47.5]} 28. g4 {[%clk 0:21:22.8]} 28... hxg4 {[%clk 0:20:52.8]} 29. hxg4 {[%clk 0:21:30.6]} 29... Kg7 {[%clk 0:20:59]} 30. d6 {[%clk 0:21:33.4]} 30... Rh8 {[%clk 0:21:03.2]} 31. d7 {[%clk 0:21:30.4]} 31... Rd8 {[%clk 0:21:08.3]} 32. Nxe5 {[%clk 0:21:29.7]} 32... Rdg8 {[%clk 0:21:10.1]} 33. Nc6 {[%clk 0:21:20.5]} 33... Bd8 {[%clk 0:21:03.1]} 34. Nxd8 {[%clk 0:21:22.8]} 34... Rxd8 {[%clk 0:21:09.9]} 35. Qd4+ {[%clk 0:21:30.1]} 35... Kg6 {[%clk 0:21:12.1]} 36. Qd6+ {[%clk 0:21:33.2]} 36... Kg7 {[%clk 0:21:16.4]} 37. c4 {[%clk 0:21:26.7]} 37... Rdg8 {[%clk 0:21:10.5]} 38. Re5 {[%clk 0:21:32.5]} 38... Rh7 {[%clk 0:21:08.1]} 39. Rxg5+ {[%clk 0:21:37.4]} 39... Kh8 {[%clk 0:21:08.9]} 40. Qe5+ {[%clk 0:21:44.8]} 40... Rgg7 {[%clk 0:21:14.8]} 41. Rxg7 {[%clk 0:21:53.8]} 41... Rxg7 {[%clk 0:21:21.2]} 42. d8=Q+ {[%clk 0:22:02.2]} 42... Kh7 {[%clk 0:21:27.1]} 43. Qh5# {[%clk 0:22:11]} 1-0

[Event "Live Chess"]
[Site "Chess.com"]
[Date "2021.02.06"]
[Round "-"]
[White "ChessWizard1393"]
[Black "MrinalA"]
[Result "1-0"]
[CurrentPosition "8/8/8/5P2/8/3K4/4Q3/4k3 b - -"]
[Timezone "UTC"]
[ECO "C42"]
[ECOUrl "https://www.chess.com/openings/Petrovs-Defense-Classical-Stafford-Gambit"]
[UTCDate "2021.02.06"]
[UTCTime "20:32:02"]
[WhiteElo "1176"]
[BlackElo "950"]
[TimeControl "1200+10"]
[Termination "ChessWizard1393 won by checkmate"]
[StartTime "20:32:02"]
[EndDate "2021.02.06"]
[EndTime "20:40:33"]
[Link "https://www.chess.com/live/game/6472996676"]

1. e4 {[%clk 0:20:05.1]} 1... e5 {[%clk 0:20:08.5]} 2. Nf3 {[%clk 0:20:13.7]} 2... Nf6 {[%clk 0:20:15.4]} 3. Nxe5 {[%clk 0:20:21.9]} 3... Nc6 {[%clk 0:20:24.1]} 4. Nxc6 {[%clk 0:20:29.9]} 4... dxc6 {[%clk 0:20:33]} 5. Nc3 {[%clk 0:20:38.9]} 5... Bc5 {[%clk 0:20:41.6]} 6. Bc4 {[%clk 0:20:45.4]} 6... O-O {[%clk 0:20:49.7]} 7. d3 {[%clk 0:20:52.4]} 7... b5 {[%clk 0:20:45]} 8. Bb3 {[%clk 0:20:58.3]} 8... a5 {[%clk 0:20:41.9]} 9. a3 {[%clk 0:21:05.7]} 9... a4 {[%clk 0:20:50.5]} 10. Ba2 {[%clk 0:21:14.2]} 10... Bb6 {[%clk 0:20:48.5]} 11. Bg5 {[%clk 0:21:20.7]} 11... Bd4 {[%clk 0:20:47.1]} 12. Qd2 {[%clk 0:21:22.5]} 12... h6 {[%clk 0:20:53.1]} 13. Bh4 {[%clk 0:21:29.4]} 13... g5 {[%clk 0:20:59.5]} 14. Bg3 {[%clk 0:21:38]} 14... Nh5 {[%clk 0:21:07.9]} 15. Qe2 {[%clk 0:21:35.4]} 15... Nxg3 {[%clk 0:21:14.8]} 16. hxg3 {[%clk 0:21:44.1]} 16... Bg7 {[%clk 0:21:16.6]} 17. Qh5 {[%clk 0:21:42]} 17... Qe8 {[%clk 0:21:01.7]} 18. O-O-O {[%clk 0:21:44.1]} 18... Be6 {[%clk 0:20:58.8]} 19. Bxe6 {[%clk 0:21:49.8]} 19... Qxe6 {[%clk 0:21:05.7]} 20. f4 {[%clk 0:21:52.3]} 20... gxf4 {[%clk 0:20:56]} 21. gxf4 {[%clk 0:22:02.2]} 21... Qg6 {[%clk 0:21:02.7]} 22. Qxg6 {[%clk 0:22:04.5]} 22... fxg6 {[%clk 0:21:11.3]} 23. Rdf1 {[%clk 0:22:10.2]} 23... h5 {[%clk 0:21:19.2]} 24. f5 {[%clk 0:22:17.6]} 24... Bh6+ {[%clk 0:21:28]} 25. Kb1 {[%clk 0:22:25.7]} 25... gxf5 {[%clk 0:21:35.4]} 26. Rxf5 {[%clk 0:22:34]} 26... Rxf5 {[%clk 0:21:44.1]} 27. exf5 {[%clk 0:22:43.9]} 27... Rf8 {[%clk 0:21:38.9]} 28. Rxh5 {[%clk 0:22:51.7]} 28... Rf6 {[%clk 0:21:47.9]} 29. g4 {[%clk 0:22:59.5]} 29... Bd2 {[%clk 0:21:40.2]} 30. Ne4 {[%clk 0:23:06.7]} 30... Rf8 {[%clk 0:21:19.3]} 31. Nxd2 {[%clk 0:23:13.2]} 31... Re8 {[%clk 0:21:28]} 32. c3 {[%clk 0:23:19.2]} 32... Re1+ {[%clk 0:21:36.2]} 33. Kc2 {[%clk 0:23:27.3]} 33... Rg1 {[%clk 0:21:45.2]} 34. g5 {[%clk 0:23:35]} 34... c5 {[%clk 0:21:47.4]} 35. g6 {[%clk 0:23:41.8]} 35... Kg7 {[%clk 0:21:55.4]} 36. Ne4 {[%clk 0:23:49.1]} 36... b4 {[%clk 0:22:02.2]} 37. cxb4 {[%clk 0:23:54.1]} 37... cxb4 {[%clk 0:22:11.2]} 38. axb4 {[%clk 0:24:02.9]} 38... Rg2+ {[%clk 0:22:18.2]} 39. Kc3 {[%clk 0:24:11.2]} 39... Rg4 {[%clk 0:22:18.1]} 40. Rh7+ {[%clk 0:24:18.4]} 40... Kg8 {[%clk 0:22:25.5]} 41. Rxc7 {[%clk 0:24:27.2]} 41... Rg1 {[%clk 0:22:05.1]} 42. Nf6+ {[%clk 0:24:35]} 42... Kf8 {[%clk 0:22:12.3]} 43. g7+ {[%clk 0:24:33.1]} 43... Rxg7 {[%clk 0:22:16.4]} 44. Rxg7 {[%clk 0:24:43]} 44... Kxg7 {[%clk 0:22:25.8]} 45. b5 {[%clk 0:24:51.2]} 45... Kxf6 {[%clk 0:22:34.6]} 46. Kc4 {[%clk 0:25:00.1]} 46... Ke5 {[%clk 0:22:43]} 47. Kc5 {[%clk 0:25:09.4]} 47... Kf4 {[%clk 0:22:48.2]} 48. b6 {[%clk 0:25:18.3]} 48... Ke3 {[%clk 0:22:57.8]} 49. b7 {[%clk 0:25:26.8]} 49... Kxd3 {[%clk 0:23:07.6]} 50. b8=Q {[%clk 0:25:35.7]} 50... Kc2 {[%clk 0:23:17.5]} 51. Qa7 {[%clk 0:25:44.7]} 51... Kxb2 {[%clk 0:23:26.7]} 52. Qxa4 {[%clk 0:25:53.7]} 52... Kc3 {[%clk 0:23:35]} 53. Qc4+ {[%clk 0:26:02.7]} 53... Kd2 {[%clk 0:23:43.9]} 54. Qb3 {[%clk 0:26:11.8]} 54... Ke2 {[%clk 0:23:52.3]} 55. Kd4 {[%clk 0:26:21.7]} 55... Kd2 {[%clk 0:24:01.1]} 56. Qb2+ {[%clk 0:26:29.9]} 56... Kd1 {[%clk 0:24:10.2]} 57. Kd3 {[%clk 0:26:39.3]} 57... Ke1 {[%clk 0:24:19.7]} 58. Qe2# {[%clk 0:26:48.5]} 1-0

[Event "Live Chess"]
[Site "Chess.com"]
[Date "2021.02.06"]
[Round "-"]
[White "sb1789"]
[Black "yeetacopter2"]
[Result "0-1"]
[CurrentPosition "2k4r/pbp2p2/1p1p3Q/3PpP2/1n2P3/1B6/PPP3qr/R4RK1 w - -"]
[Timezone "UTC"]
[ECO "C28"]
[ECOUrl "https://www.chess.com/openings/Bishops-Opening-Berlin-Vienna-Hybrid-Variation"]
[UTCDate "2021.02.06"]
[UTCTime "20:32:15"]
[WhiteElo "1058"]
[BlackElo "1032"]
[TimeControl "1200+10"]
[Termination "yeetacopter2 won by checkmate"]
[StartTime "20:32:15"]
[EndDate "2021.02.06"]
[EndTime "20:57:59"]
[Link "https://www.chess.com/live/game/6472997014"]

1. e4 {[%clk 0:20:04.7]} 1... e5 {[%clk 0:20:08.1]} 2. Bc4 {[%clk 0:20:02.3]} 2... Nf6 {[%clk 0:20:16]} 3. d3 {[%clk 0:20:06.9]} 3... Nc6 {[%clk 0:20:12.8]} 4. Nc3 {[%clk 0:20:10.7]} 4... Bc5 {[%clk 0:20:12.2]} 5. Bg5 {[%clk 0:20:12.7]} 5... d6 {[%clk 0:20:15.4]} 6. Nd5 {[%clk 0:20:18]} 6... h6 {[%clk 0:19:36.6]} 7. Nxf6+ {[%clk 0:20:10.1]} 7... gxf6 {[%clk 0:19:44.8]} 8. Be3 {[%clk 0:20:08.4]} 8... Bxe3 {[%clk 0:19:28.8]} 9. fxe3 {[%clk 0:20:14.9]} 9... f5 {[%clk 0:19:32.7]} 10. Qh5 {[%clk 0:20:12.8]} 10... Rf8 {[%clk 0:19:12.6]} 11. exf5 {[%clk 0:20:15.5]} 11... Nb4 {[%clk 0:19:04]} 12. Bb3 {[%clk 0:20:14]} 12... b6 {[%clk 0:18:22.3]} 13. Nf3 {[%clk 0:20:18.8]} 13... Bb7 {[%clk 0:18:02.8]} 14. e4 {[%clk 0:20:08.2]} 14... Qd7 {[%clk 0:17:55]} 15. O-O {[%clk 0:20:01.7]} 15... O-O-O {[%clk 0:17:59.2]} 16. Qxh6 {[%clk 0:19:35.3]} 16... Rh8 {[%clk 0:17:53.1]} 17. Qg7 {[%clk 0:19:34.4]} 17... Rdf8 {[%clk 0:17:35]} 18. Qg5 {[%clk 0:19:16.1]} 18... Rfg8 {[%clk 0:17:09.5]} 19. Qd2 {[%clk 0:19:10]} 19... Na6 {[%clk 0:16:58.7]} 20. Rfe1 {[%clk 0:19:01.1]} 20... Qe7 {[%clk 0:16:13.5]} 21. d4 {[%clk 0:18:50.7]} 21... Qf6 {[%clk 0:15:02.4]} 22. d5 {[%clk 0:18:37.5]} 22... Qg7 {[%clk 0:14:54.2]} 23. h3 {[%clk 0:18:22.2]} 23... Rxh3 {[%clk 0:14:44.4]} 24. Rf1 {[%clk 0:17:58.5]} 24... Nb4 {[%clk 0:14:45.7]} 25. Rf2 {[%clk 0:17:29.4]} 25... Rgh8 {[%clk 0:13:00.6]} 26. Rff1 {[%clk 0:16:54.6]} 26... Qg3 {[%clk 0:12:00.8]} 27. Nh2 {[%clk 0:15:05.9]} 27... Rxh2 {[%clk 0:11:49.7]} 28. Qh6 {[%clk 0:12:43.5]} 28... Qxg2# {[%clk 0:11:07]} 0-1


1200+10

[Event "Live Chess"]
[Site "Chess.com"]
[Date "2021.02.06"]
[Round "-"]
[White "RagingLion"]
[Black "BishopPlayz"]
[Result "0-1"]
[CurrentPosition "2Q5/p4pk1/8/6pp/1P4P1/2P2r1K/1P1q3P/8 w - -"]
[Timezone "UTC"]
[ECO "C57"]
[ECOUrl "https://www.chess.com/openings/Italian-Game-Knight-Attack-Polerio-Defense"]
[UTCDate "2021.02.06"]
[UTCTime "20:31:11"]
[WhiteElo "700"]
[BlackElo "1069"]
[TimeControl "1200+10"]
[Termination "BishopPlayz won by checkmate"]
[StartTime "20:31:11"]
[EndDate "2021.02.06"]
[EndTime "20:41:18"]
[Link "https://www.chess.com/live/game/6472987643"]

1. e4 {[%clk 0:20:10]} 1... e5 {[%clk 0:20:08.6]} 2. Nf3 {[%clk 0:20:17.3]} 2... Nc6 {[%clk 0:20:17.5]} 3. Bc4 {[%clk 0:20:24.4]} 3... Nf6 {[%clk 0:20:25.4]} 4. Ng5 {[%clk 0:20:29.2]} 4... d5 {[%clk 0:20:34.3]} 5. exd5 {[%clk 0:20:36.7]} 5... Na5 {[%clk 0:20:43.7]} 6. Bb3 {[%clk 0:20:42.3]} 6... Nxb3 {[%clk 0:20:50.4]} 7. axb3 {[%clk 0:20:52.2]} 7... Nxd5 {[%clk 0:20:50.6]} 8. Nf3 {[%clk 0:20:58.4]} 8... e4 {[%clk 0:20:54.9]} 9. Ne5 {[%clk 0:21:00]} 9... Qf6 {[%clk 0:20:42.9]} 10. Ng4 {[%clk 0:20:58.3]} 10... Qf5 {[%clk 0:20:46.2]} 11. Ne3 {[%clk 0:21:02.7]} 11... Nxe3 {[%clk 0:20:54.1]} 12. dxe3 {[%clk 0:21:12.6]} 12... Bb4+ {[%clk 0:20:56.6]} 13. c3 {[%clk 0:21:19.5]} 13... Bd6 {[%clk 0:20:55.7]} 14. O-O {[%clk 0:21:16.1]} 14... Qe5 {[%clk 0:20:57.2]} 15. g3 {[%clk 0:21:23]} 15... Bh3 {[%clk 0:21:02]} 16. Re1 {[%clk 0:21:27.1]} 16... O-O {[%clk 0:20:45.7]} 17. f3 {[%clk 0:21:26.9]} 17... exf3 {[%clk 0:20:43.6]} 18. Qxf3 {[%clk 0:21:36.8]} 18... Rfe8 {[%clk 0:20:36.7]} 19. Qxb7 {[%clk 0:21:38.9]} 19... Bc5 {[%clk 0:20:15]} 20. b4 {[%clk 0:21:32.5]} 20... Bb6 {[%clk 0:19:53.5]} 21. Na3 {[%clk 0:21:30]} 21... Rab8 {[%clk 0:19:43.2]} 22. Qf3 {[%clk 0:21:31.7]} 22... h6 {[%clk 0:19:16.2]} 23. Nc4 {[%clk 0:21:33]} 23... Qe6 {[%clk 0:19:08.9]} 24. Nxb6 {[%clk 0:21:34.7]} 24... Qxb6 {[%clk 0:19:16.6]} 25. Rf1 {[%clk 0:21:41]} 25... Bxf1 {[%clk 0:19:23.7]} 26. Qxf1 {[%clk 0:21:46]} 26... Re6 {[%clk 0:19:24.6]} 27. Qc4 {[%clk 0:21:36.4]} 27... Rf6 {[%clk 0:19:22]} 28. Bd2 {[%clk 0:21:33.7]} 28... Rd8 {[%clk 0:19:16.9]} 29. Rd1 {[%clk 0:21:31.6]} 29... Rxd2 {[%clk 0:19:16.1]} 30. Rxd2 {[%clk 0:21:37.8]} 30... Qxe3+ {[%clk 0:19:25.2]} 31. Kg2 {[%clk 0:21:41.8]} 31... Qxd2+ {[%clk 0:19:26.4]} 32. Kh3 {[%clk 0:21:43.6]} 32... g5 {[%clk 0:19:30.3]} 33. Qxc7 {[%clk 0:21:48.7]} 33... h5 {[%clk 0:19:36.2]} 34. Qc8+ {[%clk 0:21:56]} 34... Kg7 {[%clk 0:19:45]} 35. g4 {[%clk 0:22:00.9]} 35... Rf3# {[%clk 0:19:50.4]} 0-1

[Event "Live Chess"]
[Site "Chess.com"]
[Date "2021.02.06"]
[Round "-"]
[White "CePtIcCrAsH5X_X"]
[Black "ArnavRavi3"]
[Result "1-0"]
[CurrentPosition "4Q1k1/p1p2ppp/2B5/1Pp5/8/6P1/Pr3P1P/R4RK1 b - -"]
[Timezone "UTC"]
[ECO "A22"]
[ECOUrl "https://www.chess.com/openings/English-Opening-Two-Knights-Variation"]
[UTCDate "2021.02.06"]
[UTCTime "20:31:22"]
[WhiteElo "1195"]
[BlackElo "1025"]
[TimeControl "1200+10"]
[Termination "CePtIcCrAsH5X_X won by checkmate"]
[StartTime "20:31:22"]
[EndDate "2021.02.06"]
[EndTime "20:35:46"]
[Link "https://www.chess.com/live/game/6472988394"]

1. c4 {[%clk 0:20:09.7]} 1... Nf6 {[%clk 0:20:03.5]} 2. Nc3 {[%clk 0:20:16.5]} 2... e5 {[%clk 0:20:11]} 3. g3 {[%clk 0:20:24.1]} 3... Bc5 {[%clk 0:20:09.9]} 4. Bg2 {[%clk 0:20:31.6]} 4... Ng4 {[%clk 0:20:09.6]} 5. e3 {[%clk 0:20:38.8]} 5... O-O {[%clk 0:20:14.2]} 6. Qxg4 {[%clk 0:20:46.2]} 6... d6 {[%clk 0:20:16.7]} 7. Qd1 {[%clk 0:20:51.6]} 7... Nc6 {[%clk 0:20:16]} 8. Nge2 {[%clk 0:20:52.9]} 8... Bg4 {[%clk 0:20:20.2]} 9. O-O {[%clk 0:21:00.6]} 9... Qg5 {[%clk 0:20:13.1]} 10. d4 {[%clk 0:20:58.9]} 10... exd4 {[%clk 0:20:17.1]} 11. exd4 {[%clk 0:21:07.7]} 11... Nxd4 {[%clk 0:20:24.2]} 12. Bxg5 {[%clk 0:21:15]} 12... Bxe2 {[%clk 0:20:29.9]} 13. Nxe2 {[%clk 0:21:22.3]} 13... Nxe2+ {[%clk 0:20:38.9]} 14. Qxe2 {[%clk 0:21:30.2]} 14... Rae8 {[%clk 0:20:48.2]} 15. Be3 {[%clk 0:21:25.2]} 15... b5 {[%clk 0:20:40.4]} 16. cxb5 {[%clk 0:21:32.1]} 16... Re5 {[%clk 0:20:38.7]} 17. Qd3 {[%clk 0:21:33.8]} 17... Rfe8 {[%clk 0:20:42.7]} 18. Bxc5 {[%clk 0:21:41.4]} 18... dxc5 {[%clk 0:20:51.2]} 19. Qd2 {[%clk 0:21:43.9]} 19... Re2 {[%clk 0:20:59]} 20. Qd3 {[%clk 0:21:49.5]} 20... Rxb2 {[%clk 0:21:02.4]} 21. Bc6 {[%clk 0:21:53.2]} 21... Re6 {[%clk 0:21:05.8]} 22. Qd8+ {[%clk 0:22:01.1]} 22... Re8 {[%clk 0:21:07.2]} 23. Qxe8# {[%clk 0:22:10.4]} 1-0